bitfinex/quotes_ETHUSD_20250517
["timestamp","ask_amount","ask_price","bid_price","bid_amount"]
[1747479855941,4.02184064,2486.5,2486.4,7.55]
[1747479856447,4.57277902,2486.4,2486.3,0.48203669]
[1747479856855,4.02236434,2486.1,2485.7,8.3045]
[1747479857157,4.02258331,2486.0,2485.7,8.3045]
[1747479857362,4.02244021,2486.1,2485.7,8.3045]
[1747479857659,8.5509,2486.7,2485.8,3.01726938]
[1747479857841,4.02187815,2486.5,2486.0,4.78120003]
[1747479858046,11.56755553,2486.6,2486.0,4.78120003]
[1747479858235,4.02205389,2486.3,2486.0,0.7587]
[1747479858635,4.02205389,2486.3,2486.1,0.22510342]
[1747479858953,4.02205389,2486.3,2486.2,7.546]
[1747479859655,4.02205389,2486.3,2486.2,7.77110342]
[1747479860648,4.02205389,2486.3,2486.2,8.15563581]
[1747479862022,11.5675696,2486.6,2486.2,9.04706939]
[1747479862225,11.5675696,2486.6,2486.3,0.22510342]
[1747479863460,4.02174432,2486.5,2486.3,0.22510342]
[1747479863665,4.02174432,2486.5,2486.4,0.38453239]
[1747479864027,11.56764495,2486.6,2486.4,0.38453239]
[1747479864753,4.02171727,2486.5,2486.4,0.38453239]
[1747479865666,4.02171727,2486.5,2486.4,0.60990808]
[1747479865868,5.58064504,2486.5,2486.4,0.60990808]
[1747479866032,4.57261727,2486.5,2486.4,0.60990808]
[1747479866342,4.57261727,2486.5,2486.4,0.22537569]
[1747479866546,4.02220255,2486.2,2486.1,7.547]
[1747479867352,4.02220255,2486.2,2486.1,7.77252036]
[1747479868866,4.02220255,2486.2,2486.1,8.15734473]
[1747479872271,4.02220255,2486.2,2486.1,0.61034473]
[1747479872473,4.57310255,2486.2,2486.1,0.38482437]
[1747479874072,4.57310255,2486.2,2485.8,7.547]
[1747479874073,4.02263819,2486.0,2485.8,7.547]
[1747479874278,4.02268796,2485.9,2485.8,10.038]
[1747479874663,4.02268796,2485.9,2485.8,10.26333925]
[1747479875172,4.02268796,2485.9,2485.8,8.15684882]
[1747479877376,4.57358796,2485.9,2485.8,0.60984882]
[1747479877746,12.12058796,2485.9,2485.8,0.60984882]
[1747479878169,12.12058796,2485.9,2485.8,0.38450957]
[1747479878541,4.02317347,2485.6,2485.5,0.48203669]
[1747479879581,4.02317347,2485.6,2484.9,4.0242932]
[1747479879582,4.02365911,2485.3,2484.6,1.2851749]
[1747479879786,7.4403329,2484.7,2484.6,1.2851749]
[1747479879946,37.57948899,2484.7,2484.6,1.51059923]
[1747479880652,39.27723647,2484.7,2484.6,1.2851749]
[1747479880878,40.67809061,2484.7,2484.6,1.2851749]
[1747479881187,12.57585471,2484.5,2484.4,0.01050809]
[1747479881480,17.05622161,2484.5,2484.4,0.01050809]
[1747479882172,15.68630007,2484.5,2484.4,0.01050809]
[1747479882374,13.69377993,2484.5,2484.4,0.01050809]
[1747479882570,28.24185471,2484.5,2484.4,0.01050809]
[1747479883165,12.57585471,2484.5,2484.4,0.01050809]
[1747479883353,32.23985471,2484.5,2484.4,0.01050809]
[1747479883767,28.23985471,2484.5,2484.4,0.01050809]
[1747479885160,38.04392998,2484.5,2484.4,0.01050809]
[1747479885981,22.37992998,2484.5,2484.4,0.01050809]
[1747479886163,38.03892998,2484.5,2484.4,0.01050809]
[1747479886752,38.03692998,2484.5,2484.4,0.01050809]
[1747479887880,38.03292998,2484.5,2484.4,0.01050809]
[1747479888485,38.02992998,2484.5,2484.4,0.01050809]
[1747479889486,38.02692998,2484.5,2484.4,0.01050809]
[1747479890295,38.71685501,2484.5,2484.4,0.01050809]
[1747479892186,23.06985501,2484.5,2484.4,0.01050809]
[1747479892483,38.70685501,2484.5,2484.4,0.01050809]
[1747479892653,38.01692998,2484.5,2484.4,0.01050809]
[1747479892856,42.01692998,2484.5,2484.4,0.01050809]
[1747479894413,38.01692998,2484.5,2484.4,0.01050809]
[1747479894871,38.01092998,2484.5,2484.4,0.01050809]
[1747479895367,38.00892998,2484.5,2484.4,0.01050809]
[1747479897908,22.37992998,2484.5,2484.4,0.01050809]
[1747479898208,37.99892998,2484.5,2484.4,0.01050809]
[1747479900086,38.20874354,2484.5,2484.4,0.01050809]
[1747479900671,38.89866857,2484.5,2484.4,0.01050809]
[1747479900875,42.89866857,2484.5,2484.4,0.01050809]
[1747479902788,27.27966857,2484.5,2484.4,0.01050809]
[1747479902990,42.19574354,2484.5,2484.4,0.01050809]
[1747479903198,26.58974354,2484.5,2484.4,0.01050809]
[1747479903508,42.19474354,2484.5,2484.4,0.01050809]
[1747479904513,18.03884354,2484.5,2484.4,0.01050809]
[1747479904731,21.59002998,2484.5,2484.4,0.01050809]
[1747479905097,29.59002998,2484.5,2484.4,0.01050809]
[1747479905413,21.59002998,2484.5,2484.4,0.01050809]
[1747479905778,29.59002998,2484.5,2484.4,0.01050809]
[1747479907313,30.3507283,2484.5,2484.4,0.01050809]
[1747479907707,31.2507283,2484.5,2484.4,0.01050809]
[1747479911522,31.94065333,2484.5,2484.4,0.01050809]
[1747479912527,32.41794228,2484.5,2484.4,0.01050809]
[1747479913589,31.72801725,2484.5,2484.4,0.01050809]
[1747479915093,31.70001725,2484.5,2484.4,0.01050809]
[1747479915394,39.44301725,2484.5,2484.4,0.01050809]
[1747479916130,38.9657283,2484.5,2484.4,0.01050809]
[1747479918108,39.65565333,2484.5,2484.4,0.01050809]
[1747479919231,40.2920386,2484.5,2484.4,0.01050809]
[1747479919437,24.8160386,2484.5,2484.4,0.01050809]
[1747479919634,24.12611357,2484.5,2484.4,0.01050809]
[1747479919856,39.03921357,2484.5,2484.4,0.01050809]
[1747479920142,44.2800386,2484.5,2484.4,0.01050809]
[1747479920436,40.2800386,2484.5,2484.4,0.01050809]
[1747479921432,0.5509,2484.2,2483.4,0.7921]
[1747479921633,4.02657539,2483.5,2483.4,0.7921]
[1747479921820,11.74357539,2483.5,2483.4,0.7921]
[1747479922431,19.74357539,2483.5,2483.4,0.7921]
[1747479924403,8.0,2483.4,2482.9,0.8221]
[1747479924755,15.60381529,2483.3,2482.9,0.8221]
[1747479924918,7.715,2483.2,2482.9,0.8221]
[1747479925713,9.79356718,2483.3,2483.0,0.8221]
[1747479926043,7.713,2483.2,2483.0,0.8221]
[1747479927338,9.79356718,2483.3,2483.0,0.8221]
[1747479927540,17.50256718,2483.3,2483.1,0.8141]
[1747479927728,9.79356718,2483.3,2483.1,0.8141]
[1747479927929,9.79356718,2483.3,2483.2,4.02706185]
[1747479928131,9.79356718,2483.3,2483.2,4.84116185]
[1747479928431,8.96026718,2484.1,2483.6,4.02641327]
[1747479928634,7.71,2484.0,2483.7,0.8141]
[1747479929210,8.96026718,2484.1,2483.8,0.8141]
[1747479929531,8.96026718,2484.1,2483.8,4.84010682]
[1747479929735,7.707,2484.0,2483.8,4.84016761]
[1747479930053,7.707,2484.0,2483.9,1.29811676]
[1747479930717,7.707,2484.0,2483.9,0.8141]
[1747479931124,11.73276489,2484.0,2483.9,0.8141]
[1747479931320,11.73276489,2484.0,2483.5,0.8141]
[1747479931507,11.7328435,2484.0,2483.5,0.8141]
[1747479931733,11.7328435,2484.0,2483.3,11.7728618]
[1747479931734,12.98595672,2484.1,2483.6,4.84050106]
[1747479931970,8.96026718,2484.1,2483.8,0.8141]
[1747479932276,7.702,2484.0,2483.8,0.8141]
[1747479933275,4.02592696,2483.9,2483.8,0.8141]
[1747479933481,4.02684761,2483.4,2483.1,0.755]
[1747479933644,7.708,2483.5,2483.1,2.07204173]
[1747479933844,4.0267559,2483.4,2483.1,2.07204173]
[1747479934059,11.73465767,2483.5,2483.1,2.07204173]
[1747479934255,4.02679903,2483.4,2483.1,2.07204173]
[1747479934456,11.73465748,2483.5,2483.1,2.07204173]
[1747479934655,8.96026718,2483.9,2483.2,1.36494135]
[1747479934880,4.02615773,2483.8,2483.4,0.755]
[1747479935080,8.96026718,2483.9,2483.6,0.755]
[1747479935405,8.96026718,2483.9,2483.7,4.781134]
[1747479935552,7.711,2484.0,2483.8,0.755]
[1747479935937,4.02552303,2484.2,2483.8,0.755]
[1747479936174,7.71,2484.1,2484.0,0.755]
[1747479936373,11.73560283,2484.1,2484.0,0.755]
[1747479936580,4.02560283,2484.1,2484.0,0.755]
[1747479937138,4.02620939,2483.8,2483.4,7.745]
[1747479937380,4.02620939,2483.8,2483.5,1.93217806]
[1747479939573,4.02627993,2483.7,2483.5,1.93217806]
[1747479939774,4.02636535,2483.7,2483.5,0.755]
[1747479939978,7.702,2483.9,2483.5,0.755]
[1747479940399,4.02639188,2483.7,2483.5,0.755]
[1747479940699,7.703,2483.7,2483.5,0.755]
[1747479940842,4.02600134,2483.9,2483.5,0.755]
[1747479941049,7.707,2484.1,2483.8,0.755]
[1747479941246,7.707,2484.1,2483.8,5.25911949]
[1747479941679,11.73169963,2484.1,2483.8,1.23311209]
[1747479941999,7.706,2484.1,2483.8,0.755]
[1747479942157,7.706,2484.1,2483.3,1.23605234]
[1747479942346,4.02621382,2483.8,2483.3,5.26283119]
[1747479943458,4.02627674,2483.7,2483.3,1.23605234]
[1747479943662,4.02627674,2483.7,2483.3,5.26293966]
[1747479943862,4.02617773,2483.8,2483.4,0.52629397]
[1747479944479,4.0262782,2483.7,2483.4,0.52629397]
[1747479944673,4.02617097,2483.8,2483.4,0.52629397]
[1747479944878,4.02617097,2483.8,2483.4,4.55302711]
[1747479945792,0.7589,2484.2,2483.4,4.55302711]
[1747479945994,4.02594115,2483.9,2483.5,1.68848902]
[1747479946299,4.02625115,2483.7,2483.3,0.755]
[1747479946596,4.02625115,2483.7,2483.1,0.48105234]
[1747479946597,4.02706185,2483.2,2483.1,1.23605234]
[1747479946764,11.74606185,2483.2,2483.1,0.48105234]
[1747479949485,4.02723916,2483.1,2482.9,0.755]
[1747479949782,20.70637288,2483.2,2482.9,0.755]
[1747479950158,16.67126718,2483.2,2482.9,1.23328476]
[1747479950573,20.69833585,2483.2,2482.9,0.755]
[1747479950775,16.67126718,2483.2,2482.9,0.755]
[1747479950997,16.67126718,2483.2,2482.9,4.78254544]
[1747479952205,8.96026718,2483.2,2483.0,4.02733479]
[1747479952403,8.96026718,2483.2,2483.1,4.79042403]
[1747479952608,8.96026718,2483.2,2483.1,1.64499695]
[1747479952808,8.96026718,2483.2,2483.1,5.67222098]
[1747479953698,8.96026718,2483.2,2483.1,1.64499695]
[1747479954227,11.73166021,2483.5,2483.1,1.64499695]
[1747479955008,4.02683493,2483.4,2483.1,1.64499695]
[1747479956806,4.02683493,2483.4,2483.1,0.7632]
[1747479957901,11.71783493,2483.4,2483.1,0.7632]
[1747479959015,7.687,2483.4,2483.1,0.7632]
[1747479959825,4.0269912,2483.3,2483.1,0.7632]
[1747479960029,11.71380817,2483.4,2483.1,0.7632]
[1747479960324,11.71380817,2483.4,2483.1,2.01297397]
[1747479960687,11.70880817,2483.4,2483.1,2.01297397]
[1747479962533,4.02667236,2483.5,2483.1,2.01297397]
[1747479962705,7.675,2483.4,2483.1,2.01297397]
[1747479963147,11.70174154,2483.4,2483.1,2.01297397]
[1747479963428,12.20174154,2483.4,2483.1,2.01297397]
[1747479963796,4.02690565,2483.3,2483.1,2.01297397]
[1747479964830,4.5268057,2483.4,2483.1,2.01297397]
[1747479966211,4.02690235,2483.3,2483.1,2.01297397]
[1747479966940,4.52683247,2483.4,2483.1,2.01297397]
[1747479967137,4.02691822,2483.3,2483.1,2.01297397]
[1747479967338,4.5268508,2483.4,2483.1,2.01297397]
[1747479967953,0.5,2483.4,2483.3,4.02689968]
[1747479968161,8.96026718,2483.7,2483.3,4.02689968]
[1747479968162,7.659,2483.8,2483.4,4.02663249]
[1747479968466,11.68510832,2483.8,2483.3,4.78796199]
[1747479968664,11.68510832,2483.8,2483.4,0.94190143]
[1747479968861,7.659,2483.8,2483.4,4.96853342]
[1747479969074,11.6831409,2483.8,2483.4,4.96853342]
[1747479969219,4.02614069,2483.8,2483.5,0.7611]
[1747479970642,4.02600555,2483.9,2483.5,0.7611]
[1747479970820,11.67800555,2483.9,2483.5,1.73675234]
[1747479971024,11.67700555,2483.9,2483.5,1.73675234]
[1747479971221,4.02600555,2483.9,2483.5,1.73675234]
[1747479971437,11.67600555,2483.9,2483.5,1.73675234]
[1747479971638,11.67500555,2483.9,2483.5,1.73675234]
[1747479971841,4.02600555,2483.9,2483.5,1.73675234]
[1747479972145,11.67400555,2483.9,2483.6,1.19148298]
[1747479972547,4.02610792,2483.8,2483.6,1.19148298]
[1747479973254,4.52610792,2483.8,2483.6,1.19148298]
[1747479974552,0.5,2483.8,2483.6,1.19148298]
[1747479974932,4.52616765,2483.8,2483.6,1.19148298]
[1747479975120,4.52616765,2483.8,2483.5,1.73675234]
[1747479975320,4.52616765,2483.8,2483.5,0.7611]
[1747479976275,4.02639483,2483.7,2483.5,0.7611]
[1747479976440,4.52618443,2483.8,2483.5,0.7611]
[1747479977176,0.5,2483.8,2483.5,0.7611]
[1747479977376,0.5,2483.8,2483.7,4.02625115]
[1747479977552,12.98580833,2484.2,2483.7,5.59604069]
[1747479977747,8.96026718,2484.2,2483.9,0.7605]
[1747479977949,12.02520723,2484.4,2483.9,0.7605]
[1747479977950,7.636,2484.3,2483.9,0.7605]
[1747479978162,4.02576489,2484.0,2483.7,0.7605]
[1747479978471,4.02600388,2483.9,2483.7,0.7605]
[1747479978645,0.7769,2484.2,2483.7,0.7605]
[1747479978974,4.02585332,2484.0,2483.7,0.7605]
[1747479979373,4.02619121,2483.8,2483.3,5.33733125]
[1747479979677,4.02650621,2483.6,2483.4,1.39413662]
[1747479979882,4.0263336,2483.7,2483.4,0.7605]
[1747479980902,11.66316912,2483.8,2483.4,0.7605]
[1747479981483,4.02642781,2483.6,2483.3,0.48105234]
[1747479982384,4.02642781,2483.6,2483.2,1.36453497]
[1747479982588,4.02701266,2483.3,2483.1,7.65]
[1747479983787,4.02722403,2483.1,2483.0,0.48105234]
[1747479984084,4.02716619,2483.2,2483.0,0.48105234]
[1747479984385,7.665,2483.1,2483.0,0.48105234]
[1747479984577,11.69222403,2483.1,2483.0,0.48105234]
[1747479985565,11.69222403,2483.1,2482.7,4.02780286]
[1747479985765,11.69222403,2483.1,2482.8,0.52643552]
[1747479986487,4.02751625,2483.0,2482.8,0.52643552]
[1747479986689,11.69231593,2483.1,2482.6,5.26457116]
[1747479987102,4.0273895,2483.0,2482.6,1.23655234]
[1747479987262,4.02762978,2482.9,2482.6,1.23655234]
[1747479988164,4.02787288,2482.7,2482.6,0.48105234]
[1747479988385,4.02763367,2482.9,2482.6,0.48105234]
[1747479988585,9.72306718,2483.2,2482.6,1.07183736]
[1747479988783,7.657,2482.9,2482.7,0.7555]
[1747479989499,4.02781794,2482.8,2482.5,8.4065]
[1747479989693,4.02781794,2482.8,2482.5,0.7555]
[1747479989899,4.02781794,2482.8,2482.3,4.50952286]
[1747479990095,4.02796444,2482.7,2482.3,0.48105234]
[1747479990414,4.02787399,2482.7,2482.3,1.83696852]
[1747479990593,4.02780241,2482.8,2482.3,5.86546751]
[1747479991390,4.02789517,2482.7,2482.3,1.83696852]
[1747479991596,4.02787288,2482.7,2482.3,1.83696852]
[1747479991976,4.02787288,2482.7,2482.3,1.35591618]
[1747479993014,4.02787288,2482.7,2482.4,0.61400079]
[1747479993176,8.7628,2482.6,2482.0,0.48105234]
[1747479993371,4.79164654,2482.1,2482.0,0.48105234]
[1747479993575,21.45891372,2482.1,2482.0,0.48105234]
[1747479994013,4.02847133,2482.4,2482.0,0.48105234]
[1747479994014,4.02850086,2482.4,2482.0,0.48105234]
[1747479994211,12.98854683,2482.5,2482.0,4.50998117]
[1747479994385,12.98854683,2482.5,2482.1,0.52654812]
[1747479995515,4.02836406,2482.4,2482.0,4.02892883]
[1747479995819,20.70651396,2482.5,2482.0,4.02892883]
[1747479996019,4.02837399,2482.4,2482.0,4.02892883]
[1747479996218,4.02837399,2482.4,2481.9,12.43759417]
[1747479996585,4.02854648,2482.3,2481.9,8.4085]
[1747479996785,4.02854648,2482.3,2481.9,10.05521948]
[1747479997020,4.02843853,2482.4,2481.9,14.08435843]
[1747479999928,20.6985523,2482.5,2482.0,4.02898509]
[1747480000109,4.02836004,2482.4,2482.0,4.02898509]
[1747480000414,20.69851914,2482.5,2481.9,14.08430345]
[1747480000628,20.69851914,2482.5,2482.0,5.43743921]
[1747480000848,4.02839869,2482.4,2482.0,1.40843035]
[1747480001134,4.02843389,2482.4,2482.0,1.40843035]
[1747480003508,4.02843389,2482.4,2482.0,5.43742589]
[1747480003910,16.65826718,2482.5,2481.9,8.4575]
[1747480004110,4.02864419,2482.3,2481.9,8.4575]
[1747480004309,4.02864419,2482.3,2481.9,12.48666143]
[1747480004947,4.02843822,2482.4,2481.9,12.48666143]
[1747480006220,20.68653553,2482.5,2482.0,4.02891597]
[1747480006415,20.68653553,2482.5,2482.1,5.68040353]
[1747480006615,8.96026718,2482.5,2482.1,5.68040353]
[1747480006863,16.66526718,2482.5,2482.2,0.8198]
[1747480007151,20.69346661,2482.5,2482.2,0.8198]
[1747480009148,4.02845413,2482.4,2482.2,0.8198]
[1747480009525,20.69356038,2482.5,2482.2,0.8198]
[1747480011155,12.98856038,2482.5,2482.2,0.8198]
[1747480011454,16.65026718,2482.5,2482.2,0.8198]
[1747480011750,16.64926718,2482.5,2482.2,0.8198]
[1747480012653,8.96026718,2482.5,2482.2,0.8198]
[1747480012953,16.64526718,2482.5,2482.2,0.8198]
[1747480014382,20.67361628,2482.5,2482.2,0.8198]
[1747480016557,16.64526718,2482.5,2482.2,0.8198]
[1747480017768,20.67350806,2482.5,2482.2,0.8198]
[1747480018486,4.02840166,2482.4,2482.2,0.8198]
[1747480018845,4.02840166,2482.4,2482.0,8.4832]
[1747480019259,4.02840166,2482.4,2482.0,10.18546394]
[1747480020079,4.02840166,2482.4,2482.0,10.66651628]
[1747480020448,8.96026718,2482.5,2482.0,10.66651628]
[1747480020649,16.62526718,2482.5,2482.2,4.02860965]
[1747480020854,16.62526718,2482.5,2482.1,4.02875997]
[1747480021382,16.62526718,2482.5,2482.1,5.4982876]
[1747480021550,20.65350133,2482.5,2482.1,5.4982876]
[1747480021980,16.62526718,2482.5,2482.1,5.4982876]
[1747480022184,4.02779072,2482.8,2482.4,0.7802]
[1747480022386,7.668,2482.7,2482.5,4.02819596]
[1747480022565,7.668,2482.7,2482.4,4.80847557]
[1747480022754,7.668,2482.7,2482.4,5.69221881]
[1747480023085,7.668,2482.7,2482.4,1.66389048]
[1747480023386,11.69571577,2482.8,2482.4,0.7802]
[1747480023594,4.02791106,2482.7,2482.4,0.7802]
[1747480026091,4.02805058,2482.6,2482.4,0.7802]
[1747480026300,4.02805058,2482.6,2482.2,8.96325234]
[1747480026596,4.02794421,2482.7,2482.2,12.99192514]
[1747480026764,8.96026718,2482.9,2482.6,4.02792292]
[1747480026964,8.96026718,2482.9,2482.5,4.06839166]
[1747480027164,8.96026718,2482.9,2482.5,4.02811433]
[1747480027165,12.98782399,2482.9,2482.5,4.02811433]
[1747480027578,8.96026718,2482.9,2482.5,4.02811433]
[1747480028493,8.96026718,2482.9,2482.6,4.02802382]
[1747480028799,8.96026718,2482.9,2482.6,4.91168066]
[1747480029201,8.96026718,2482.9,2482.6,0.88365684]
[1747480031100,12.98786557,2482.9,2482.6,0.88365684]
[1747480031281,8.96026718,2482.9,2482.4,1.26125234]
[1747480031601,12.98789233,2482.9,2482.4,5.28950402]
[1747480032503,8.96026718,2482.9,2482.8,0.7802]
[1747480034789,12.98781561,2482.9,2482.6,0.7867]
[1747480035182,4.02774477,2482.8,2482.4,12.94410336]
[1747480035493,4.02774477,2482.8,2482.4,3.21421737]
[1747480035494,4.02777347,2482.8,2482.4,3.21421737]
[1747480035703,13.73830119,2482.9,2482.4,5.29603649]
[1747480035906,13.73830119,2482.9,2482.4,12.94403649]
[1747480036789,12.98790119,2482.9,2482.5,4.02819349]
[1747480037319,12.98790119,2482.9,2482.4,12.94402601]
[1747480037695,12.98790119,2482.9,2482.5,4.02819542]
[1747480038929,8.96026718,2482.9,2482.4,1.26775234]
[1747480039111,0.7785,2482.8,2482.4,0.48105234]
[1747480039424,4.80629399,2482.8,2482.4,0.48105234]
[1747480039982,8.96026718,2482.9,2482.5,0.80958142]
[1747480040183,8.96026718,2482.9,2482.7,4.02784832]
[1747480041125,8.96026718,2482.9,2482.6,4.02794354]
[1747480041443,8.96026718,2482.9,2482.6,0.88253809]
[1747480041651,8.96026718,2482.9,2482.5,4.79740784]
[1747480042037,12.98790376,2482.9,2482.5,0.7693]
[1747480042911,13.76820376,2482.9,2482.5,0.7693]
[1747480043442,13.76820376,2482.9,2482.4,11.67629203]
[1747480044465,4.02771064,2482.8,2482.4,7.648]
[1747480044848,4.0280049,2482.7,2482.4,7.648]
[1747480045026,4.02819738,2482.5,2482.4,7.648]
[1747480045225,4.02771064,2482.8,2482.4,7.648]
[1747480045421,4.02810653,2482.6,2482.4,7.648]
[1747480045622,11.66310653,2482.6,2482.4,7.648]
[1747480046034,16.59426718,2482.9,2482.5,4.77857711]
[1747480046232,4.02772795,2482.8,2482.5,0.7505]
[1747480048958,4.02772795,2482.8,2482.4,7.648]
[1747480049148,4.02815848,2482.6,2482.4,7.648]
[1747480049362,4.80495531,2482.7,2482.3,0.48105234]
[1747480049641,4.02808435,2482.6,2482.3,0.48105234]
[1747480050152,4.02835965,2482.4,2482.3,0.48105234]
[1747480050355,11.65135965,2482.4,2482.3,0.48105234]
[1747480050762,11.65135965,2482.4,2482.0,8.94445234]
[1747480051190,7.623,2482.4,2482.0,8.94445234]
[1747480051468,7.623,2482.4,2482.0,12.97338046]
[1747480051668,7.623,2482.4,2482.0,14.73791432]
[1747480051868,7.623,2482.4,2482.1,4.02883093]
[1747480052067,7.623,2482.4,2482.0,14.73791063]
[1747480052563,7.623,2482.4,2482.0,14.25685829]
[1747480055384,11.65138234,2482.4,2482.0,14.25685829]
[1747480055775,4.02855794,2482.3,2481.9,0.48105234]
[1747480055952,0.8263,2482.3,2481.9,0.48105234]
[1747480056148,4.85441479,2482.6,2482.1,4.8195731]
[1747480056355,7.617,2482.5,2482.1,4.8195731]
[1747480056956,11.64524803,2482.5,2482.1,0.7908]
[1747480057267,11.64528897,2482.5,2482.1,0.7908]
[1747480058070,4.02837462,2482.4,2482.1,0.7908]
[1747480058573,11.64521557,2482.5,2482.1,4.81961182]
[1747480058788,4.02795076,2482.7,2482.2,4.0285792]
[1747480059093,9.75716718,2482.9,2482.2,0.04028301]
[1747480059269,7.617,2482.7,2482.5,4.02819738]
[1747480059645,7.617,2482.7,2482.4,4.81302194]
[1747480059846,7.617,2482.7,2482.4,0.7847]
[1747480060075,11.6427402,2482.8,2482.4,0.7847]
[1747480060961,10.33135355,2482.8,2482.3,8.13005234]
[1747480061274,4.0279352,2482.7,2482.3,8.13005234]
[1747480061439,4.02821593,2482.5,2482.3,8.13005234]
[1747480062759,4.02811838,2482.6,2482.3,8.13005234]
[1747480063160,4.02820547,2482.5,2482.3,8.13005234]
[1747480063676,4.02820547,2482.5,2482.0,5.29467788]
[1747480063978,4.02820547,2482.5,2482.1,8.53838102]
[1747480065356,12.43962923,2482.8,2482.1,7.606]
[1747480065565,4.02846181,2482.4,2482.1,7.606]
[1747480067083,4.02856296,2482.3,2482.1,7.606]
[1747480067686,4.02868423,2482.2,2481.9,0.48105234]
[1747480067979,4.02893508,2482.1,2481.9,0.48105234]
[1747480068182,4.02900886,2482.0,2481.9,0.48105234]
[1747480068996,4.80079878,2482.1,2481.9,0.48105234]
[1747480069302,4.02900886,2482.0,2481.9,0.48105234]
[1747480069790,4.80076933,2482.1,2481.9,0.48105234]
[1747480070255,7.606,2482.0,2481.9,0.48105234]
[1747480070461,4.02868093,2482.3,2481.7,4.02944723]
[1747480070462,4.80058093,2482.3,2481.7,4.02944723]
[1747480070688,7.606,2482.2,2481.8,0.48610472]
[1747480071050,4.02868423,2482.2,2481.8,0.48610472]
[1747480071346,7.609,2482.1,2481.8,0.48610472]
[1747480071849,11.63787739,2482.1,2481.6,4.86116676]
[1747480072343,4.0290122,2482.0,2481.6,0.8316]
[1747480072561,4.0290122,2482.0,2481.6,8.4386]
[1747480072983,4.0290122,2482.0,2481.6,12.46825766]
[1747480073292,4.0290122,2482.0,2481.6,8.4386]
[1747480073858,7.609,2482.1,2481.6,11.47333458]
[1747480074053,7.609,2482.1,2481.6,8.4386]
[1747480074256,7.609,2482.1,2481.6,8.91965234]
[1747480074257,4.0290867,2482.0,2481.6,8.91965234]
[1747480074895,4.02923616,2481.9,2481.6,8.91965234]
[1747480075085,4.02908762,2482.0,2481.6,8.91965234]
[1747480076485,4.02919609,2481.9,2481.6,8.91965234]
[1747480076681,4.02933624,2481.8,2481.6,0.48105234]
[1747480076858,4.02949591,2481.7,2481.6,0.48105234]
[1747480077060,4.02942701,2481.8,2481.6,0.48105234]
[1747480077298,4.02942701,2481.8,2481.5,8.08805234]
[1747480077598,4.02942701,2481.8,2481.5,0.48105234]
[1747480078010,0.8248,2482.0,2481.5,0.48105234]
[1747480078011,4.02965828,2481.6,2481.5,0.48105234]
[1747480079806,12.43705828,2481.6,2481.5,0.48105234]
[1747480080285,4.03008365,2481.4,2481.1,0.48105234]
[1747480080866,4.03030791,2481.2,2481.1,0.48105234]
[1747480081996,4.03022241,2481.3,2481.1,0.48105234]
[1747480082220,12.99014409,2481.5,2481.1,0.48105234]
[1747480082421,11.64200126,2481.4,2481.1,0.48105234]
[1747480082921,12.99010009,2481.5,2481.2,4.03022262]
[1747480082922,8.96026718,2481.5,2481.2,4.03022262]
[1747480083521,8.96026718,2481.5,2481.1,4.03046554]
[1747480083826,8.96026718,2481.5,2481.1,4.03037181]
[1747480084021,8.96026718,2481.5,2481.1,4.0706727]
[1747480084193,8.96026718,2481.5,2481.2,4.51795518]
[1747480084389,8.96026718,2481.5,2481.2,0.48764727]
[1747480084588,8.96026718,2481.5,2481.2,4.51783066]
[1747480084787,8.96026718,2481.5,2481.3,4.03006286]
[1747480085899,13.81764685,2482.0,2481.3,0.7516]
[1747480086103,4.02941147,2481.8,2481.3,4.78169163]
[1747480086306,7.605,2481.9,2481.3,0.7516]
[1747480086646,11.63424276,2481.9,2481.4,4.02992252]
[1747480088638,7.605,2481.9,2481.5,4.02974351]
[1747480088991,11.63422965,2481.9,2481.4,4.02989926]
[1747480089191,4.02922965,2481.9,2481.4,1.73882769]
[1747480089491,4.02922965,2481.9,2481.4,5.76871945]
[1747480089923,4.02934075,2481.8,2481.4,1.73882769]
[1747480090219,21.4155835,2482.0,2481.4,1.73882769]
[1747480090220,4.02924035,2481.9,2481.4,1.73882769]
[1747480090925,4.02924035,2481.9,2481.4,5.76868364]
[1747480093339,8.96026718,2482.0,2481.6,0.8026]
[1747480093524,8.96026718,2482.0,2481.6,4.83218033]
[1747480094247,8.3772,2482.2,2481.8,4.02925773]
[1747480094416,7.597,2482.2,2481.8,4.02925773]
[1747480094628,4.02860447,2482.3,2481.8,4.02925773]
[1747480094918,7.596,2482.2,2481.8,4.02925773]
[1747480095246,4.02860447,2482.3,2481.8,4.02925773]
[1747480095542,4.02860447,2482.3,2481.8,11.62625773]
[1747480095738,4.02860447,2482.3,2481.9,4.02915297]
[1747480096304,8.96026718,2482.4,2482.0,4.83160128]
[1747480096510,8.96026718,2482.4,2481.8,0.8026]
[1747480096848,4.8294286,2482.3,2481.9,7.597]
[1747480097145,4.8294286,2482.3,2481.8,4.83183875]
[1747480097441,4.8294286,2482.3,2481.8,13.36307135]
[1747480099648,8.96026718,2482.4,2481.9,4.02914814]
[1747480099951,8.96026718,2482.4,2482.0,4.02893604]
[1747480100315,8.96026718,2482.4,2482.0,4.02892137]
[1747480100515,8.96026718,2482.4,2482.0,4.02892576]
[1747480100938,8.96026718,2482.4,2482.0,5.82311354]
[1747480101114,11.62728474,2482.5,2482.0,5.82311354]
[1747480101313,11.62728474,2482.5,2482.0,4.02892576]
[1747480101624,4.02837121,2482.4,2482.0,4.02892576]
[1747480101825,11.62728358,2482.5,2482.0,4.02892576]
[1747480102714,7.599,2482.5,2482.0,4.02892576]
[1747480102939,4.81530499,2482.3,2481.9,7.596]
[1747480103160,4.81530499,2482.3,2481.9,13.00947803]
[1747480103463,11.62726867,2482.5,2482.1,4.02883178]
[1747480103616,7.599,2482.5,2482.1,4.06911713]
[1747480103813,7.599,2482.5,2482.2,4.02853277]
[1747480104247,7.599,2482.5,2482.3,4.02850036]
[1747480104453,7.595,2482.6,2482.3,4.02850036]
[1747480104613,13.77475633,2482.8,2482.3,4.02850036]
[1747480104948,7.596,2482.7,2482.3,5.64731328]
[1747480105135,12.98805422,2482.8,2482.3,1.61892879]
[1747480105336,12.98799597,2482.8,2482.3,5.64739724]
[1747480105739,8.38405071,2482.9,2482.3,5.64739724]
[1747480105945,15.97905071,2482.9,2482.4,4.02826181]
[1747480106255,15.97905071,2482.9,2482.4,4.99584362]
[1747480107756,4.02773305,2482.8,2482.4,12.59084362]
[1747480108954,15.97912456,2482.9,2482.4,12.59084362]
[1747480109157,4.02773006,2482.8,2482.4,12.59084362]
[1747480110669,4.35649404,2482.9,2482.7,0.8019]
[1747480110820,4.02741209,2483.0,2482.8,0.48297779]
[1747480111026,4.02741209,2483.0,2482.5,4.82999363]